fUSD/lending_fUSD_20260404
["ID","MTS","AMOUNT","RATE_DAILY","PERIOD"]
[419692251,1775297443865,-500.0,0.00014572,2]
[419692252,1775297443875,-500.0,0.00014572,2]
[419692253,1775297443885,-500.0,0.00014572,2]
[419692254,1775297443894,-500.0,0.00014572,2]
[419692255,1775297443904,-500.0,0.00014572,2]
[419692256,1775297443913,-249.91061674,0.00014572,2]
[419692257,1775297443923,-500.0,0.00014573,2]
[419692258,1775297443932,-500.0,0.00014573,2]
[419692259,1775297443942,-500.0,0.00014573,2]
[419692260,1775297443951,-502.07394156,0.00014573,2]
[419692261,1775297443961,-5169.54450061,0.00014574,2]
[419692262,1775297443971,-2863.45575892,0.00014574,2]
[419692263,1775297443980,-13114.90387506,0.00014575,2]
[419692264,1775297443991,-53079.74640601,0.00014577,2]
[419692265,1775297444019,-25454.86008501,0.00014577,2]
[419692266,1775297444042,-2851.09784737,0.00014577,2]
[419692267,1775297444053,-255.60486348,0.00014577,2]
[419692268,1775297444068,-446.55308912,0.00014577,2]
[419692269,1775297444136,-901.48698902,0.00014577,2]
[419692273,1775297446131,-29835.46662168,0.00014577,2]
[419692274,1775297446142,-4670.60698737,0.00014577,2]
[419692275,1775297446559,-8751.67449996,0.00014577,2]
[419692283,1775297473988,-150.0,0.00014337,2]
[419692284,1775297474012,-150.0,0.00014488,2]
[419692285,1775297474035,-300.0,0.00014525,2]
[419692286,1775297474059,-500.0,0.00014525,2]
[419692287,1775297474083,-300.0,0.0001455,2]
[419692288,1775297474107,-300.0,0.0001455,2]
[419692289,1775297474132,-300.0,0.0001455,2]
[419692290,1775297474155,-500.0,0.0001455,2]
[419692291,1775297474178,-500.0,0.0001455,2]
[419692292,1775297474201,-500.0,0.0001455,2]
[419692293,1775297474227,-2830.4693874,0.00014561,2]
[419692294,1775297474251,-376.0,0.00014561,2]
[419692295,1775297474276,-2500.0,0.00014564,2]
[419692296,1775297474299,-195.0,0.00014567,2]
[419692297,1775297474323,-500.0,0.00014572,2]
[419692298,1775297474346,-647.88588496,0.00014573,2]
[419692299,1775297474369,-151.0,0.00014574,2]
[419692300,1775297474395,-446299.64472764,0.00014577,2]
[419692302,1775297609023,-1000.0,0.00011405,2]
[419692303,1775297609542,-501.0,0.00013111,2]
[419692304,1775297609622,-200.0,0.00014327,2]
[419692305,1775297609646,-200.0,0.000145,2]
[419692306,1775297609671,-431.3,0.00014572,2]
[419692307,1775297609695,-1109.74589812,0.00014572,2]
[419692308,1775297609721,-500.0,0.00014573,2]
[419692309,1775297609744,-1000.0,0.00014576,2]
[419692310,1775297609769,-157.0,0.00014577,3]
[419692311,1775297609793,-2500.0,0.00014579,2]
[419692312,1775297609817,-2500.0,0.00014579,2]
[419692313,1775297609842,-2500.0,0.00014579,2]
[419692314,1775297618110,29516.0950674,0.00014576,2]
[419692316,1775297647180,157.0,0.000146,2]
[419692317,1775297651149,26148.9146,0.00011405,2]
[419692318,1775297662573,200.99070699,0.00014521,2]
[419692319,1775297697184,170.84154384,0.00014574,2]
[419692321,1775297707659,200.0,0.000146,2]
[419692322,1775297713822,157.0,0.000146,2]
[419692323,1775297761270,9245.5685488,0.0001446,2]
[419692324,1775297763617,163.63945989,0.0001444,2]
[419692325,1775297765638,158.0,0.000146,2]
[419692326,1775297825665,158.0,0.000146,2]
[419692327,1775297833099,501.0,0.00013111,2]
[419692328,1775297840219,1709.53,0.00014359,2]
[419692329,1775297866717,238.55,7.139e-05,2]
[419692330,1775297866915,238.55,7.515e-05,2]
[419692331,1775297867111,238.55,7.891e-05,2]
[419692332,1775297867328,238.55,8.267e-05,2]
[419692333,1775297867524,238.55,8.642e-05,2]
[419692334,1775297867731,238.55,9.018e-05,2]
[419692335,1775297867910,238.55,9.394e-05,2]
[419692336,1775297868106,238.55,9.77e-05,2]
[419692337,1775297868302,238.55,0.00010146,2]
[419692338,1775297868551,238.55,0.00010521,2]
[419692339,1775297868901,238.55,0.00010897,2]
[419692340,1775297869106,238.55,0.00011273,2]
[419692341,1775297869283,238.55,0.00011649,2]
[419692342,1775297869475,238.55,0.00012024,2]
[419692343,1775297869665,238.55,0.000124,2]
[419692344,1775297869846,238.55,0.00012776,2]
[419692345,1775297870052,238.55,0.00013152,2]
[419692346,1775297870257,238.55,0.00013527,2]
[419692347,1775297870453,238.55,0.00013903,2]
[419692348,1775297870650,238.55,0.00014279,2]
[419692349,1775297891150,158.0,0.000146,2]
[419692350,1775297962757,10639.8318267,0.0001457,2]
[419692351,1775298006387,200.0,0.000146,2]
[419692352,1775298008091,2808.4502313,0.0001457,2]
[419692353,1775298056579,5399.1597667,0.0001457,2]
[419692354,1775298121791,1121.17,0.00014009,2]
[419692356,1775298191778,723.46,0.00014021,2]
[419692357,1775298198930,501.0,0.00013111,2]
[419692358,1775298277593,159.9,0.00013984,2]
[419692359,1775298290980,120432.40235026,0.0001457,2]
[419692360,1775298437123,-2942.2527628,0.00013579,2]
[419692366,1775298632265,-1000.0,0.0001285,2]
[419692367,1775298632275,-1000.0,0.00012877,2]
[419692368,1775298632285,-250.0,0.00013017,2]
[419692369,1775298632294,-1000.0,0.000131,2]
[419692370,1775298632303,-501.0,0.00013111,2]
[419692371,1775298632313,-1000.0,0.00013184,2]
[419692372,1775298632322,-1018.1,0.00013254,2]
[419692373,1775298632332,-1000.0,0.00013327,2]
[419692374,1775298632341,-577.45266412,0.00013382,2]
[419692375,1775298632350,-1000.0,0.00013388,2]
[419692376,1775298632360,-1200.0,0.00013394,2]
[419692377,1775298632370,-1000.0,0.00013395,2]
[419692378,1775298632380,-1000.0,0.00013509,2]
[419692379,1775298632389,-300.0,0.00013578,2]
[419692380,1775298632399,-1470.5272372,0.00013579,2]
[419692381,1775298632409,-3240.0,0.00013586,2]
[419692382,1775298632419,-1000.0,0.0001364,2]
[419692383,1775298632428,-195.0,0.00013754,2]
[419692384,1775298632438,-317.73784037,0.00013754,2]
[419692385,1775298632447,-1000.0,0.00013772,2]
[419692386,1775298632457,-1000.0,0.00013799,2]
[419692387,1775298632466,-1000.0,0.00013979,2]
[419692388,1775298632476,-1000.0,0.00014021,2]
[419692389,1775298632485,-500.0,0.00014135,2]
[419692390,1775298632495,-250.0,0.00014135,2]
[419692391,1775298632504,-195.0,0.00014135,2]
[419692392,1775298632514,-150.0,0.00014159,2]
[419692393,1775298632523,-150.0,0.000144,2]
[419692394,1775298632533,-150.0,0.000144,2]
[419692395,1775298632543,-150.0,0.000144,2]
[419692396,1775298632552,-150.0,0.000144,2]
[419692397,1775298632562,-150.0,0.000144,2]
[419692398,1775298632571,-150.0,0.000144,2]
[419692399,1775298632581,-150.0,0.000144,2]
[419692400,1775298632590,-163.77123243,0.000144,2]
[419692401,1775298632600,-150.0,0.000144,2]
[419692402,1775298632611,-150.0,0.000144,2]
[419692403,1775298632621,-150.0,0.000144,2]
[419692404,1775298632630,-150.0,0.000144,2]
[419692405,1775298632640,-345.04,0.000144,2]
[419692406,1775298632649,-750.0,0.000144,7]
[419692407,1775298632659,-2500.0,0.00014427,2]
[419692408,1775298632668,-150.0,0.00014444,2]
[419692409,1775298632678,-2500.0,0.00014445,2]
[419692410,1775298632687,-2500.0,0.00014445,2]
[419692411,1775298632696,-150.0,0.00014453,2]
[419692412,1775298632706,-150.0,0.00014455,2]
[419692413,1775298632715,-150.0,0.00014457,2]
[419692414,1775298632724,-150.0,0.00014459,2]
[419692415,1775298632734,-150.0,0.00014473,2]
[419692416,1775298632743,-1000.0,0.00014482,2]
[419692417,1775298632752,-1000.0,0.00014494,2]
[419692418,1775298633030,-300.0,0.00014502,2]
[419692419,1775298633041,-600.0,0.00014502,2]
[419692420,1775298633051,-195.0,0.00014502,2]
[419692421,1775298633060,-2500.0,0.00014502,2]
[419692422,1775298633071,-150.0,0.00014507,2]
[419692423,1775298633081,-150.0,0.0001451,2]
[419692424,1775298633091,-150.0,0.00014514,2]
[419692425,1775298633100,-150.0,0.00014519,2]
[419692426,1775298633110,-150.0,0.00014533,2]
[419692427,1775298633121,-150.0,0.00014545,2]
[419692428,1775298633130,-150.0,0.00014545,2]
[419692429,1775298633140,-150.0,0.0001456,2]
[419692430,1775298633150,-150.0,0.00014564,2]
[419692431,1775298633160,-150.0,0.00014566,2]
[419692432,1775298633170,-500.0,0.00014569,2]
[419692433,1775298633179,-500.0,0.00014569,2]
[419692434,1775298633190,-300.0,0.0001457,2]
[419692435,1775298633199,-179090.99803603,0.0001457,2]
[419692436,1775298633974,-49239.70779011,0.0001457,2]
[419692437,1775298633986,-150.0,0.00014571,2]
[419692438,1775298633998,-150.0,0.00014578,2]
[419692439,1775298634008,-2058.4102673,0.00014587,2]
[419692440,1775298634017,-897.4152989,0.00014587,2]
[419692470,1775298638564,-343.86919524,0.00014587,2]
[419692471,1775298638673,-817.12577316,0.00014587,2]
[419692472,1775298638682,-182.87422684,0.00014587,2]
[419692473,1775298638786,-1544.98100992,0.00014587,2]
[419692505,1775298640642,-330.55503054,0.00014587,2]
[419692506,1775298640652,-2058.4102673,0.00014587,2]
[419692507,1775298640661,-2058.4102673,0.00014587,2]
[419692508,1775298640671,-2058.4102673,0.00014587,2]
[419692509,1775298640682,-2058.4102673,0.00014587,2]
[419692510,1775298640692,-2058.4102673,0.00014587,2]
[419692511,1775298640701,-2058.4102673,0.00014587,2]
[419692512,1775298640711,-2058.4102673,0.00014587,2]
[419692513,1775298640720,-2058.4102673,0.00014587,2]
[419692514,1775298640730,-2058.4102673,0.00014587,2]
[419692515,1775298640739,-2058.4102673,0.00014587,2]
[419692516,1775298640749,-2058.4102673,0.00014587,2]
[419692517,1775298640759,-2058.4102673,0.00014587,2]
[419692518,1775298640768,-2058.4102673,0.00014587,2]
[419692519,1775298640778,-2058.4102673,0.00014587,2]
[419692520,1775298640787,-2058.4102673,0.00014587,2]
[419692521,1775298640797,-2058.4102673,0.00014587,2]
[419692522,1775298640806,-2058.4102673,0.00014587,2]
[419692523,1775298640816,-2058.4102673,0.00014587,2]
[419692524,1775298640826,-2058.4102673,0.00014587,2]
[419692525,1775298641159,-2058.4102673,0.00014587,2]
[419692526,1775298641169,-2058.4102673,0.00014587,2]
[419692527,1775298641179,-2058.4102673,0.00014587,2]
[419692528,1775298641188,-2058.4102673,0.00014587,2]
[419692529,1775298641198,-2058.4102673,0.00014587,2]
[419692530,1775298641207,-2058.4102673,0.00014587,2]
[419692531,1775298641217,-2058.4102673,0.00014587,2]
[419692532,1775298641226,-2058.4102673,0.00014587,2]
[419692533,1775298641235,-2058.4102673,0.00014587,2]
[419692534,1775298641244,-2058.4102673,0.00014587,2]
[419692535,1775298641254,-2058.4102673,0.00014587,2]
[419692536,1775298641263,-2058.4102673,0.00014587,2]
[419692537,1775298641273,-2058.4102673,0.00014587,2]
[419692538,1775298641282,-2058.4102673,0.00014587,2]
[419692539,1775298641291,-2058.4102673,0.00014587,2]
[419692540,1775298641301,-2058.4102673,0.00014587,2]
[419692541,1775298641310,-2058.4102673,0.00014587,2]
[419692542,1775298641320,-2058.4102673,0.00014587,2]
[419692543,1775298641330,-2058.4102673,0.00014587,2]
[419692544,1775298641339,-2058.4102673,0.00014587,2]
[419692545,1775298641348,-2058.4102673,0.00014587,2]
[419692546,1775298641358,-2058.4102673,0.00014587,2]
[419692547,1775298641367,-2058.4102673,0.00014587,2]
[419692548,1775298641377,-2058.4102673,0.00014587,2]
[419692549,1775298641386,-2058.4102673,0.00014587,2]
[419692550,1775298641396,-2058.4102673,0.00014587,2]
[419692551,1775298641405,-2058.4102673,0.00014587,2]
[419692552,1775298641415,-2058.4102673,0.00014587,2]
[419692553,1775298641425,-2058.4102673,0.00014587,2]
[419692554,1775298641434,-500.0,0.00014588,2]
[419692555,1775298641444,-500.0,0.00014588,2]
[419692556,1775298641453,-200.0,0.000146,2]
[419692557,1775298641463,-500.0,0.000146,2]
[419692558,1775298641472,-300.0,0.00014605,2]
[419692559,1775298641482,-300.0,0.00014605,2]
[419692560,1775298641491,-150.0,0.00014613,2]
[419692561,1775298641500,-150.0,0.00014614,2]
[419692562,1775298641510,-150.0,0.00014618,2]
[419692563,1775298641519,-150.0,0.00014621,2]
[419692564,1775298641529,-150.0,0.00014629,2]
[419692565,1775298641538,-150.0,0.00014629,2]
[419692566,1775298641548,-150.0,0.00014637,2]
[419692567,1775298641557,-150.0,0.00014667,2]
[419692568,1775298641567,-150.0,0.00014667,2]
[419692569,1775298641576,-500.0,0.00014674,2]
[419692570,1775298641586,-345.04,0.00014674,2]
[419692571,1775298641595,-150.0,0.00014676,2]
[419692572,1775298641604,-150.0,0.00014686,2]
[419692573,1775298641615,-150.0,0.00014691,2]
[419692574,1775298641624,-150.0,0.00014691,2]
[419692575,1775298641634,-150.0,0.00014696,2]
[419692576,1775298641643,-2000.0,0.000147,2]
[419692577,1775298641653,-150.0,0.0001472,2]
[419692578,1775298641662,-150.0,0.00014731,2]
[419692579,1775298641673,-150.0,0.00014743,2]
[419692580,1775298641683,-200.0,0.00014746,2]
[419692581,1775298641694,-150.0,0.00014756,2]
[419692582,1775298641704,-150.0,0.00014758,2]
[419692583,1775298641713,-150.0,0.00014764,2]
[419692585,1775298641723,-150.0,0.00014773,2]
[419692587,1775298641733,-150.0,0.00014786,2]
[419692589,1775298641742,-150.0,0.000148,2]
[419692591,1775298641751,-150.0,0.000148,2]
[419692592,1775298641760,-150.0,0.000148,2]
[419692593,1775298641770,-281.441801,0.00014803,2]
[419692594,1775298641779,-150.0,0.00014815,2]
[419692595,1775298641788,-150.0,0.00014827,2]
[419692596,1775298641798,-150.0,0.00014835,2]
[419692597,1775298641807,-150.0,0.00014836,2]
[419692598,1775298641816,-150.0,0.00014836,2]
[419692599,1775298641825,-150.0,0.00014841,2]
[419692600,1775298641836,-150.0,0.00014857,2]
[419692601,1775298641846,-150.0,0.00014857,2]
[419692602,1775298641855,-159.9,0.00014858,2]
[419692603,1775298641865,-4361.13,0.00014868,2]
[419692604,1775298641875,-150.0,0.00014874,2]
[419692606,1775298641884,-150.0,0.0001488,2]
[419692608,1775298641894,-420.0,0.00014882,2]
[419692610,1775298641903,-200.0,0.00014893,2]
[419692612,1775298641913,-150.0,0.00014897,2]
[419692613,1775298641923,-200.0,0.000149,5]
[419692614,1775298641932,-6266.63213671,0.00014903,2]
[419692615,1775298641942,-289.5275225,0.00014908,2]
[419692616,1775298641951,-150.0,0.00014909,2]
[419692617,1775298641960,-150.0,0.00014914,2]
[419692618,1775298641969,-150.0,0.00014918,2]
[419692619,1775298641979,-150.0,0.00014933,2]
[419692620,1775298641989,-150.0,0.00014933,2]
[419692621,1775298641998,-150.0,0.00014933,2]
[419692622,1775298642007,-345.04,0.00014948,2]
[419692623,1775298642017,-150.0,0.00014952,2]
[419692624,1775298642027,-1000.0,0.00014969,2]
[419692625,1775298642037,-150.0,0.0001497,2]
[419692626,1775298642046,-150.0,0.00014971,2]
[419692627,1775298642056,-150.0,0.00014982,2]
[419692628,1775298642066,-150.0,0.00014982,2]
[419692629,1775298642075,-150.0,0.00014987,2]
[419692630,1775298642084,-150.0,0.00014993,2]
[419692631,1775298642094,-150.0,0.00014994,2]
[419692632,1775298642103,-300.0,0.00015,2]
[419692633,1775298642113,-3044.58224996,0.00015,2]
[419692634,1775298642123,-150.0,0.00015007,2]
[419692635,1775298642132,-197.46224712,0.00015011,2]
[419692636,1775298642142,-6266.63213664,0.00015014,2]
[419692637,1775298642151,-150.0,0.00015015,2]
[419692638,1775298642161,-150.0,0.00015029,2]
[419692639,1775298642170,-150.0,0.0001504,2]
[419692640,1775298642179,-200.0,0.00015042,2]
[419692641,1775298642189,-150.0,0.00015052,2]
[419692642,1775298642198,-150.0,0.00015055,2]
[419692643,1775298642208,-1000.0,0.00015058,2]
[419692644,1775298642217,-500.0,0.00015061,2]
[419692645,1775298642227,-150.0,0.00015062,2]
[419692646,1775298642237,-1428.38747117,0.00015062,2]
[419692647,1775298642246,-200.0,0.00015062,2]
[419692648,1775298642256,-500.0,0.00015062,2]
[419692649,1775298642265,-500.0,0.00015062,2]
[419692650,1775298642274,-9407.62396624,0.00015062,2]
[419692651,1775298642284,-500.0,0.00015062,2]
[419692652,1775298642293,-500.0,0.00015062,2]
[419692653,1775298642303,-500.0,0.00015062,2]
[419692654,1775298642312,-500.0,0.00015062,2]
[419692655,1775298642322,-500.0,0.00015062,2]
[419692656,1775298642332,-500.0,0.00015062,2]
[419692657,1775298642342,-500.0,0.00015062,2]
[419692658,1775298642352,-500.0,0.00015062,2]
[419692659,1775298642362,-500.0,0.00015062,2]
[419692660,1775298642371,-500.0,0.00015062,2]
[419692661,1775298642381,-743.50770149,0.00015062,2]
[419692662,1775298642390,-500.0,0.00015062,2]
[419692663,1775298642400,-500.0,0.00015062,2]
[419692664,1775298642410,-500.0,0.00015062,2]
[419692665,1775298642420,-500.0,0.00015062,2]
[419692666,1775298642430,-500.0,0.00015062,2]
[419692667,1775298642439,-500.0,0.00015062,2]
[419692668,1775298642449,-151.0,0.00015062,2]
[419692669,1775298642459,-500.0,0.00015062,2]
[419692670,1775298642468,-500.0,0.00015062,2]
[419692671,1775298642478,-500.0,0.00015062,2]
[419692672,1775298642488,-500.0,0.00015062,2]
[419692673,1775298642497,-174.61919141,0.00015062,2]
[419692674,1775298642507,-500.0,0.00015062,2]
[419692675,1775298642516,-200.0,0.00015062,2]
[419692676,1775298642526,-279.9045709,0.00015062,2]
[419692677,1775298642536,-150.0,0.00015067,2]
[419692678,1775298642545,-810.83,0.00015068,2]
[419692679,1775298642554,-150.0,0.00015086,2]
[419692680,1775298642563,-150.0,0.00015086,2]
[419692681,1775298642573,-150.0,0.00015092,2]
[419692682,1775298642582,-150.0,0.00015093,2]
[419692683,1775298642591,-2000.0,0.000151,2]
[419692684,1775298642601,-500.0,0.00015104,2]
[419692685,1775298642611,-397063.3051,0.00015105,2]
[419692686,1775298642620,-184.39,0.00015106,2]
[419692687,1775298642629,-150.0,0.00015111,2]
[419692688,1775298642639,-500.0,0.00015117,2]
[419692689,1775298642648,-151.0,0.00015117,2]
[419692690,1775298642657,-150.0,0.00015117,2]
[419692691,1775298642667,-6266.63213664,0.00015125,2]
[419692692,1775298642676,-150.0,0.00015127,2]
[419692693,1775298642685,-150.0,0.00015127,2]
[419692694,1775298642695,-150.0,0.00015143,2]
[419692695,1775298642705,-150.0,0.00015147,2]
[419692696,1775298642715,-166.66,0.00015164,2]
[419692697,1775298642724,-150.0,0.0001517,2]
[419692698,1775298642733,-500.0,0.00015172,2]
[419692699,1775298642742,-151.0,0.00015172,2]
[419692700,1775298642752,-150.0,0.00015172,2]
[419692701,1775298642761,-150.0,0.00015175,2]
[419692702,1775298642774,-532.0,0.0001518,2]
[419692703,1775298642784,-2217.26,0.00015182,2]
[419692704,1775298642793,-200.0,0.00015193,2]
[419692705,1775298642803,-503.01601482,0.00015194,2]
[419692706,1775298642812,-150.0,0.000152,2]
[419692707,1775298642822,-150.0,0.000152,2]
[419692708,1775298642833,-150.0,0.000152,2]
[419692709,1775298642843,-150.0,0.000152,2]
[419692710,1775298642852,-150.0,0.000152,2]
[419692711,1775298642862,-150.0,0.000152,2]
[419692712,1775298642872,-10000.0,0.00015205,2]
[419692713,1775298642881,-345.04,0.00015222,2]
[419692714,1775298642890,-5888.0,0.00015225,2]
[419692715,1775298642900,-500.0,0.00015227,2]
[419692716,1775298642909,-151.0,0.00015227,2]
[419692717,1775298642919,-150.0,0.00015228,2]
[419692718,1775298642928,-150.0,0.0001523,2]
[419692719,1775298642938,-6266.63213664,0.00015235,2]
[419692720,1775298642947,-150.0,0.00015253,2]
[419692721,1775298642957,-150.0,0.00015257,2]
[419692722,1775298642966,-150.0,0.00015273,2]
[419692723,1775298642975,-150.0,0.00015273,2]
[419692724,1775298642985,-500.0,0.00015282,2]
[419692725,1775298642994,-151.0,0.00015282,2]
[419692726,1775298643003,-150.0,0.00015283,2]
[419692727,1775298643012,-150.0,0.00015289,2]
[419692728,1775298643021,-1517.64,0.000153,2]
[419692729,1775298643031,-2000.0,0.000153,2]
[419692730,1775298643041,-400.0,0.000153,5]
[419692731,1775298643051,-150.0,0.00015301,2]
[419692732,1775298643061,-1000.0,0.00015302,2]
[419692733,1775298643071,-150.0,0.00015307,2]
[419692734,1775298643081,-150.0,0.00015314,2]
[419692735,1775298643090,-150.0,0.00015314,2]
[419692736,1775298643100,-1000.0,0.0001532,2]
[419692737,1775298643110,-150.0,0.00015333,2]
[419692738,1775298643119,-500.0,0.00015337,2]
[419692739,1775298643129,-151.0,0.00015337,2]
[419692740,1775298643138,-150.0,0.00015338,2]
[419692741,1775298643148,-906.0,0.00015339,2]
[419692743,1775298643157,-150.0,0.00015345,2]
[419692744,1775298643167,-6266.63213664,0.00015346,2]
[419692745,1775298643177,-150.0,0.00015348,2]
[419692746,1775298643186,-184.39,0.00015354,2]
[419692748,1775298643196,-150.0,0.0001536,2]
[419692749,1775298643206,-785.54,0.00015364,2]
[419692750,1775298643215,-1000.0,0.0001537,2]
[419692751,1775298643224,-150.0,0.00015371,2]
[419692752,1775298643234,-500.0,0.00015392,2]
[419692753,1775298643243,-150.0,0.00015393,2]
[419692754,1775298643253,-512.53794019,0.000154,2]
[419692755,1775298643262,-700.0,0.000154,5]
[419692757,1775298643272,-150.0,0.00015407,2]
[419692759,1775298643282,-150.0,0.00015413,2]
[419692761,1775298643291,-150.0,0.00015418,2]
[419692763,1775298643301,-150.0,0.00015418,2]
[419692765,1775298643311,-1000.0,0.00015419,2]
[419692767,1775298643321,-906.0,0.00015423,2]
[419692769,1775298643330,-238.69,0.00015424,2]
[419692771,1775298643339,-150.0,0.00015429,2]
[419692774,1775298643349,-150.0,0.00015433,2]
[419692776,1775298643358,-906.0,0.00015437,2]
[419692779,1775298643368,-178.15026946,0.00015438,2]
[419692782,1775298643378,-500.0,0.00015447,2]
[419692784,1775298643387,-150.0,0.00015448,2]
[419692786,1775298643397,-1000.0,0.00015456,2]
[419692788,1775298643407,-6266.63213664,0.00015457,2]
[419692791,1775298643417,-150.0,0.00015467,2]
[419692793,1775298643427,-150.0,0.00015467,2]
[419692795,1775298643437,-150.0,0.00015467,2]
[419692797,1775298643447,-150.0,0.00015469,2]
[419692799,1775298643456,-906.0,0.00015476,2]
[419692800,1775298643466,-150.0,0.00015486,2]
[419692801,1775298643476,-150.0,0.00015491,2]
[419692802,1775298643485,-345.07,0.00015496,2]
[419692803,1775298643495,-1231.35459603,0.000155,2]
[419692804,1775298643505,-2000.0,0.000155,2]
[419692805,1775298643514,-900.0,0.000155,5]
[419692806,1775298643524,-5977.09790953,0.00015502,2]
[419692807,1775298643534,-500.0,0.00015502,2]
[419692808,1775298643543,-150.0,0.00015503,2]
[419692809,1775298643553,-151.0,0.00015504,2]
[419692810,1775298643563,-3373.76,0.00015507,2]
[419692811,1775298643574,-150.0,0.0001552,2]
[419692812,1775298643583,-150.0,0.00015521,2]
[419692813,1775298643592,-150.0,0.00015526,2]
[419692814,1775298643602,-1000.0,0.00015536,2]
[419692815,1775298643611,-150.0,0.00015541,2]
[419692816,1775298643621,-150.0,0.00015541,2]
[419692817,1775298643630,-150.0,0.00015541,2]
[419692818,1775298643639,-150.0,0.00015541,2]
[419692819,1775298643648,-150.0,0.00015541,2]
[419692820,1775298643658,-150.0,0.00015541,2]
[419692821,1775298643668,-262.0,0.00015541,2]
[419692822,1775298643677,-150.0,0.00015543,2]
[419692823,1775298643687,-150.0,0.00015543,2]
[419692824,1775298643697,-500.0,0.00015557,2]
[419692825,1775298643706,-150.0,0.00015559,2]
[419692826,1775298643716,-150.0,0.00015564,2]
[419692827,1775298643725,-150.0,0.00015564,2]
[419692828,1775298643735,-155.14456623,0.00015567,2]
[419692829,1775298643746,-6266.63213664,0.00015568,2]
[419692830,1775298643755,-150.0,0.00015571,2]
[419692831,1775298643766,-150.0,0.00015573,2]
[419692832,1775298643776,-150.0,0.00015585,2]
[419692833,1775298643785,-150.0,0.00015596,2]
[419692834,1775298643795,-150.0,0.00015596,2]
[419692835,1775298643805,-150.0,0.00015596,2]
[419692836,1775298643815,-150.0,0.00015596,2]
[419692837,1775298643824,-150.0,0.00015596,2]
[419692838,1775298643834,-150.0,0.00015596,2]
[419692839,1775298643845,-150.0,0.00015596,2]
[419692840,1775298643855,-150.0,0.00015596,2]
[419692841,1775298643864,-276.0,0.00015596,2]
[419692842,1775298643874,-150.0,0.000156,2]
[419692843,1775298643883,-150.0,0.000156,2]
[419692844,1775298643893,-150.0,0.000156,2]
[419692845,1775298643903,-1100.0,0.000156,5]
[419692846,1775298643913,-5977.09790953,0.00015601,2]
[419692847,1775298643923,-906.0,0.00015603,2]
[419692848,1775298643932,-906.0,0.00015603,2]
[419692849,1775298643942,-492.45889797,0.0001561,2]
[419692850,1775298643951,-200.0,0.0001561,2]
[419692851,1775298643961,-798.52727141,0.0001561,2]
[419692852,1775298643971,-181.08010149,0.0001561,2]
[419692853,1775298643981,-200.0,0.0001561,2]
[419692854,1775298643991,-191.85702264,0.0001561,2]
[419692855,1775298644000,-500.0,0.00015612,2]
[419692856,1775298644010,-906.0,0.00015613,2]
[419692857,1775298644020,-150.0,0.00015614,2]
[419692858,1775298644029,-150.0,0.00015627,2]
[419692859,1775298644039,-151.0,0.00015633,2]
[419692860,1775298644048,-855.35507685,0.00015634,2]
[419692861,1775298644058,-3151.0,0.00015636,5]
[419692862,1775298644068,-4952.185,0.00015636,2]
[419692863,1775298644077,-290.432,0.00015636,2]